Cogmind - Beta 11.2 @@@ ROGUE MODE // 2023.02.24 @ 14:48:36 Player: Delirus Result: Self-destructed Performance ------------- Evolutions (2) 1000 Regions Visited (5) 1000 Robots Destroyed (20) 100 Value Destroyed (442) 442 Prototype IDs (3) 60 Alien Tech Used (0) 0 Bonus (300) 300 TOTAL SCORE: 2902 Bonus ------- Aligned with FarCom 300 Cogmind --------- Core Integrity 550/550 Matter 270/300 Energy 228/250 System Corruption 0% Temperature Cool (0) Movement Rolling (150) Ox4 Location -8/Materials Parts ------- > --- POWER (1) -------- Ion Engine > --- PROPULSION (3) --- Light Treads Light Treads Armored Wheel > --- UTILITY (4) ------ High-capacity Storage Unit Seismic Detector Propulsion Shielding > --- WEAPON (3) ------- AWS/Gauss > --- INVENTORY (20) --- Light Ion Engine Light Treads Armored Wheel Large Matter Pod (150) Structural Scanner Machine Analyzer ECM Suite Medium Laser Medium Laser Particle Gun Beam Cannon Advanced Beam Cannon Advanced Beam Cannon Advanced Beam Cannon Advanced Beam Cannon Light Assault Rifle Mini Grenade Launcher Mining Laser Peak State ------------ > --- POWER ------------ Ion Engine > --- PROPULSION ------- Light Treads Light Treads Armored Wheel > --- UTILITY ---------- High-capacity Storage Unit Seismic Detector Propulsion Shielding > --- WEAPON ----------- AWS/Gauss > --- INVENTORY -------- Light Ion Engine Light Treads Armored Wheel Large Matter Pod Structural Scanner Machine Analyzer ECM Suite Medium Laser Medium Laser Particle Gun Beam Cannon Advanced Beam Cannon Advanced Beam Cannon Advanced Beam Cannon Advanced Beam Cannon Light Assault Rifle Mini Grenade Launcher Mining Laser [Rating: 27] Favorites ----------- Power Ion Engine Engine Ion Engine Propulsion Light Treads Treads Light Treads Leg Aluminum Leg Wheel Armored Wheel Utility High-capacity Storage Unit Device Seismic Detector Storage High-capacity Storage Unit Protection Propulsion Shielding Weapon Light Assault Rifle Energy Gun Medium Laser Energy Cannon Advanced Beam Cannon Ballistic Gun Light Assault Rifle Launcher Mini Grenade Launcher Slashing Weapon Longsword +1 Build | -11 -10 -10 -10 -9 -8 ------- Run | Scr Mat Min Exi Min Mat Slots Evolved 4 | . . . . . 4 Power . | . . . . . . Propulsion 1 | . . . . . 1 Utility 2 | . . . . . 2 Weapon 1 | . . . . . 1 Parts Attached 17 | 2 6 2 4 1 2 Power 1 | . 1 . . . . Engine 1 | . 1 . . . . Core . | . . . . . . Reactor . | . . . . . . Propulsion 5 | 2 1 . . 1 1 Treads 4 | 2 . . . 1 1 Leg . | . . . . . . Wheel 1 | . 1 . . . . Hover . | . . . . . . Flight . | . . . . . . Utility 4 | . 3 . . . 1 Device 2 | . 2 . . . . Storage 1 | . 1 . . . . Processor . | . . . . . . Hackware . | . . . . . . Protection 1 | . . . . . 1 Artifact . | . . . . . . Weapon 7 | . 1 2 4 . . Energy Gun . | . . . . . . Energy Cannon 1 | . . 1 . . . Ballistic Gun 4 | . 1 . 3 . . Ballistic Cannon . | . . . . . . Launcher 1 | . . 1 . . . Special Weapon . | . . . . . . Impact Weapon . | . . . . . . Slashing Weapon 1 | . . . 1 . . Piercing Weapon . | . . . . . . Special Melee Weapon . | . . . . . . Unidentified Prototypes 3 | . . 1 2 . . Parts Lost . | . . . . . . Power . | . . . . . . Propulsion . | . . . . . . Utility . | . . . . . . Weapon . | . . . . . . Highest Loss Streak . | . . . . . . To Critical Strikes . | . . . . . . Average Slot Usage (%) 95 | . 99 100 92 85 . Engine 14 | . 14 14 14 14 . Treads 15 | . 17 14 14 14 . Wheel 12 | . 10 14 14 14 . Device 13 | . 13 14 14 14 . Storage 14 | . 14 14 14 14 . Energy Gun 6 | . 14 2 . . . Energy Cannon 2 | . . 5 7 . . Ballistic Gun 11 | . 14 8 5 14 . Launcher 4 | . . 11 7 . . Naked Turns . | . . . . . . Heaviest Build 56 | 13 49 51 56 56 . Greatest Support 40 | 40 40 12 12 12 . Greatest Overweight (x) 4 | . 4 4 4 4 . Average Overweight (x) 3 | . 2 3 3 4 . Largest Inventory Capacity 20 | 8 20 20 20 20 20 Average Capacity 17 | 8 14 20 20 20 20 Most Carried 20 | 6 17 19 20 20 19 Average Carried 15 | 6 11 17 18 20 18 Final Capacity 20 | 8 20 20 20 20 20 Final Carried 20 | 6 16 18 20 20 18 Class Distribution -------------------- 100% | Mutant Dominant Class ---------------- Mutant | -10/Materials Mutant | -10/Mines Mutant | -10/Exiles Mutant | -9/Mines Mutant | -8/Materials Resources | -11 -10 -10 -10 -9 -8 ----------- Run | Scr Mat Min Exi Min Mat Matter Collected 705 | 200 237 161 . 107 . Remotely . | . . . . . . Salvage Created 640 | . 466 6 . 168 . Parts 34 | . 32 1 . 1 . Haulers Intercepted 2 | . 2 . . . . Recyclers Shooed . | . . . . . . Parts Field Recycled . | . . . . . . Retrieved Matter . | . . . . . . Parts Self-Destructed . | . . . . . . Prevented . | . . . . . . Kills | -11 -10 -10 -10 -9 -8 ------- Run | Scr Mat Min Exi Min Mat Combat Hostiles Destroyed 22 | . 12 3 . 7 . Guns 19 | . 12 . . 7 . AOE 3 | . . 3 . . . Classes Destroyed 5 | . 4 . . 1 . Hauler 2 | . 2 . . . . Operator 1 | . 1 . . . . Swarmer 8 | . 5 3 . . . Grunt 9 | . 7 . . 2 . Assembled 5 | . . . . 5 . Best Kill Streak 5 | . 3 3 . 5 . Combat Bots Only 5 | . 3 3 . 5 . Max Kills in Single Turn 2 | . 1 2 . 1 . Gunslinging . | . . . . . . Exploded 2 | . . 2 . . . Melee . | . . . . . . Uniques/NPCs Destroyed . | . . . . . . Combat | -11 -10 -10 -10 -9 -8 -------- Run | Scr Mat Min Exi Min Mat Damage Taken 526 | . 360 49 . 117 . Core 78 | . 78 . . . . Absorbed by Shields . | . . . . . . Core Remaining (%) 84 | 100 . . . 68 . Volleys Fired 42 | . 40 2 . . . Largest 2 | . 2 2 . . . Hottest 70 | . 70 50 . . . Shots Fired 101 | . 80 4 1 16 . Gun 98 | . 80 2 . 16 . Cannon 1 | . . . 1 . . Launcher 2 | . . 2 . . . Special . | . . . . . . Kinetic 58 | . 40 2 . 16 . Thermal 41 | . 40 . 1 . . Explosive 2 | . . 2 . . . Electromagnetic . | . . . . . . Robot Hit Streak 9 | . 7 . . 9 . Robot Miss Streak 4 | . 4 . . 1 . Penetration Max . | . . . . . . Secondary Targets 1 | . 1 . . . . Max Gunslinging Chain 1 | . 1 . . . . Autonomous 16 | . . . . 16 . Shots Hit Robots 62 | . 48 . . 14 . Core Hits 40 | . 30 3 . 7 . Critical Kills . | . . . . . . Critical Parts Destroyed . | . . . . . . Critical Strikes . | . . . . . . Melee Attacks . | . . . . . . Impact . | . . . . . . Slashing . | . . . . . . Piercing . | . . . . . . Sneak Attacks . | . . . . . . Combat Hostiles . | . . . . . . Follow-up Attacks . | . . . . . . Damage Inflicted 1148 | . 517 181 . 450 . Guns 931 | . 517 . . 414 . Cannons . | . . . . . . Explosions 200 | . . 181 . 19 . Melee . | . . . . . . Ramming 17 | . . . . 17 . Kinetic 590 | . 176 . . 414 . Thermal 360 | . 341 . . 19 . Explosive 181 | . . 181 . . . Electromagnetic . | . . . . . . Impact . | . . . . . . Slashing . | . . . . . . Piercing . | . . . . . . Highest Corruption 2 | . 2 2 2 2 . Average Corruption 1 | . 1 2 2 2 . Corruption Purged . | . . . . . . Corruption Blocked . | . . . . . . Effects 27 | . 8 6 7 6 . Message Errors 7 | . 3 1 1 2 . Matter Fused 7 | . 2 3 1 1 . Heat Flow Errors 6 | . 3 1 1 1 . Data Loss (minor) 3 | . . . 2 1 . Data Loss (major) 1 | . . . 1 . . Misfires 1 | . . . 1 . . Alerts 2 | . . 1 . 1 . Overload Shots . | . . . . . . Overflow Damage . | . . . . . . Projectiles . | . . . . . . Explosions . | . . . . . . Melee . | . . . . . . Knockbacks 1 | . . . . 1 . Impact 1 | . . . . 1 . Kinetic . | . . . . . . Secondary . | . . . . . . Self-Inflicted Damage 31 | . . 23 . 8 . Shots 1 | . . 1 . . . Rammed 2 | . . . . 2 . Targets Rammed 2 | . . . . 2 . Kicked . | . . . . . . Crushed . | . . . . . . Highest Temperature 279 | . 276 209 279 96 . Average Temperature 73 | . 67 81 125 56 . Received Heat Transfer 174 | . 111 . . 63 . Siege Activations . | . . . . . . Robots Corrupted . | . . . . . . Combat Hostiles . | . . . . . . Parts Fried . | . . . . . . Impact Corruptions . | . . . . . . Robots Melted . | . . . . . . Combat Hostiles . | . . . . . . Parts Melted 1 | . 1 . . . . Heat Transferred 1049 | . 999 . . 50 . Parts Sabotaged . | . . . . . . Parts Stolen . | . . . . . . Parts Stripped . | . . . . . . Power Chain Reactions . | . . . . . . Missiles Intercepted . | . . . . . . Alert | -11 -10 -10 -10 -9 -8 ------- Run | Scr Mat Min Exi Min Mat Peak Influence 362 | . 362 107 . 107 . Initial 4 | . . 4 . . . Average 66 | . 135 3 . 20 . Maximum Alert Level 1 | . 1 . . . . Low Security (%) 96 | 100 92 100 . 100 100 Level 1 3 | . 7 . . . . Level 2 . | . . . . . . Level 3 . | . . . . . . Level 4 . | . . . . . . Level 5 . | . . . . . . High Security . | . . . . . . Max Security . | . . . . . . Squads Dispatched 3 | . 3 . . . . Investigation 2 | . 2 . . . . Extermination . | . . . . . . Reinforcement 1 | . 1 . . . . Assault . | . . . . . . Garrison . | . . . . . . Intercept . | . . . . . . Searches Triggered . | . . . . . . Construction Impeded . | . . . . . . Haulers Reinforced . | . . . . . . Active Scanning Responses . | . . . . . . Cargo Convoy Interrupts . | . . . . . . Stealth | -11 -10 -10 -10 -9 -8 --------- Run | Scr Mat Min Exi Min Mat Distress Signals 1 | . 1 . . . . Communications Jammed . | . . . . . . Distress Signals . | . . . . . . Times Spotted 42 | . 35 3 . 4 . Peak Tracking Total 6 | . 6 3 . 2 . Tactical Retreats 2 | . 1 . . 1 . Traps | -11 -10 -10 -10 -9 -8 ------- Run | Scr Mat Min Exi Min Mat Traps Triggered 4 | . 4 . . . . Indirectly . | . . . . . . Trap Hack Attempts . | . . . . . . Triggered . | . . . . . . Disarmed . | . . . . . . Reprogrammed . | . . . . . . Reused . | . . . . . . Traps Extracted . | . . . . . . Installed . | . . . . . . Triggered . | . . . . . . Exploded 1 | . . . 1 . . Machines | -11 -10 -10 -10 -9 -8 ---------- Run | Scr Mat Min Exi Min Mat Machines Disabled 1 | . . . . 1 . Max in Single Turn 1 | . . . . 1 . Machines Sabotaged . | . . . . . . Garrisons Compromised . | . . . . . . Overloaded Fab Kills . | . . . . . . Hacking | -11 -10 -10 -10 -9 -8 --------- Run | Scr Mat Min Exi Min Mat Machines Accessed 9 | . 6 . 3 . . Terminals 5 | . 5 . . . . Fabricators . | . . . . . . Repair Stations . | . . . . . . Recycling Units 1 | . 1 . . . . Scanalyzers . | . . . . . . Garrison Access . | . . . . . . Total Hacks 40 | . 14 . 26 . . Successful 32 | . 6 . 26 . . Failed 8 | . 8 . . . . Catastrophic 1 | . 1 . . . . Database Lockouts . | . . . . . . Manual 15 | . 14 . 1 . . Terminals 13 | . 13 . . . . Fabricators . | . . . . . . Repair Stations . | . . . . . . Recycling Units 1 | . 1 . . . . Scanalyzers . | . . . . . . Garrison Access . | . . . . . . Terminal Hacks 29 | . 3 . 26 . . Record 26 | . . . 26 . . Part Schematic 2 | . 2 . . . . Robot Analysis 1 | . 1 . . . . Fabricator Hacks . | . . . . . . Repair Station Hacks . | . . . . . . Recycling Unit Hacks . | . . . . . . Scanalyzer . | . . . . . . Garrison Access Hacks . | . . . . . . Unauthorized Hacks 3 | . 3 . . . . Terminals 2 | . 2 . . . . Botnet 2 | . 2 . . . . Fabricators . | . . . . . . Repair Stations . | . . . . . . Recycling Units 1 | . 1 . . . . Tunnel 1 | . 1 . . . . Scanalyzers . | . . . . . . Garrison Access . | . . . . . . Data Cores Recovered 1 | . 1 . . . . Used . | . . . . . . Hacking Detections 5 | . 5 . . . . Full Trace Events . | . . . . . . Feedback Events . | . . . . . . Feedback Blocked . | . . . . . . Robot Schematics Acquired . | . . . . . . Robots Built . | . . . . . . Authchips . | . . . . . . Time . | . . . . . . Total Robot Build Rating . | . . . . . . Part Schematics Acquired 2 | . 2 . . . . Parts Built . | . . . . . . Authchips . | . . . . . . Time . | . . . . . . Total Part Build Rating . | . . . . . . Parts Repaired . | . . . . . . Time . | . . . . . . Parts Recycled . | . . . . . . Recycled Matter . | . . . . . . Retrieved Matter . | . . . . . . Retrieved Components . | . . . . . . Parts Scanalyzed . | . . . . . . Part Schematics Acquired . | . . . . . . Parts Damaged . | . . . . . . Bothacking | -11 -10 -10 -10 -9 -8 ------------ Run | Scr Mat Min Exi Min Mat Used RIF Installer . | . . . . . . Robots Hacked . | . . . . . . Non-combat . | . . . . . . Combat . | . . . . . . Robot Hacks Applied . | . . . . . . Relay Couplers Released . | . . . . . . Fabnet Peak Effective % . | . . . . . . Robots Rewired . | . . . . . . Allies Hacked . | . . . . . . Hacks Repelled . | . . . . . . Allies | -11 -10 -10 -10 -9 -8 -------- Run | Scr Mat Min Exi Min Mat Total Allies . | . . . . . . Largest Group . | . . . . . . Highest-Rated Group . | . . . . . . Highest-Rated Ally . | . . . . . . Total Orders . | . . . . . . Ally Attacks . | . . . . . . Total Damage . | . . . . . . Kills . | . . . . . . Allies Corrupted . | . . . . . . Allies Melted . | . . . . . . Intel | -11 -10 -10 -10 -9 -8 ------- Run | Scr Mat Min Exi Min Mat Robot Analysis Total 1 | . 1 . . . . Derelict Logs Recovered 3 | . . 1 . 2 . Drone Launches . | . . . . . . Drone Recoveries . | . . . . . . Exploration | -11 -10 -10 -10 -9 -8 ------------- Run | Scr Mat Min Exi Min Mat Turns Passed 3103 | 6 1218 900 398 579 2 Spaces Moved 1932 | 3 702 597 260 370 . Core . | . . . . . . Treads 129 | 1 128 . . . . Legs 2 | 2 . . . . . Wheels 1801 | . 574 597 260 370 . Hover . | . . . . . . Flight . | . . . . . . Fastest Speed 105 | 120 105 135 135 150 . Average Speed 144 | 133 141 143 149 150 . Slowest Speed 160 | 160 160 150 150 150 . Overloaded Moves . | . . . . . . Propulsion Burnouts . | . . . . . . Robots Hopped . | . . . . . . Cave-ins Triggered . | . . . . . . Exploration Rate (%) 51 | 2 88 90 62 63 1 Regions Visited 5 Branch Regions 3 Pre-discovered Areas 1 | . 1 . . . . Known Exits Taken . | . . . . . . Unknown Exits Taken 5 | 1 1 1 1 1 . Scrap Searched 4 | . . 3 . 1 . Spaces Dug 12 | . . 12 . . . Terrain Destroyed 41 | . . 24 . 17 . Melee . | . . . . . . Projectile 7 | . . . . 7 . AOE 34 | . . 24 . 10 . Terrain Rammed . | . . . . . . Walls Destroyed . | . . . . . . Machines Disabled . | . . . . . . Actions | -11 -10 -10 -10 -9 -8 --------- Run | Scr Mat Min Exi Min Mat Total 2162 | 4 854 638 271 393 2 Wait 139 | . 86 32 . 21 . Move 1927 | 2 701 596 259 369 . Hop . | . . . . . . Pick Up 21 | . 14 4 3 . . Fast Attach 4 | . 1 . 3 . . Attach 3 | . . . 1 . 2 Detach . | . . . . . . Swap 10 | 2 5 2 . 1 . Drop 14 | . 7 2 5 . . Fire 42 | . 40 2 . . . Melee . | . . . . . . Ram 2 | . . . . 2 . Kick . | . . . . . . Crush . | . . . . . . Escape Stasis . | . . . . . . Rewire . | . . . . . . Trap . | . . . . . . Miscellaneous . | . . . . . . Route ------- -11/Scrapyard -10/Materials (discovered 3 exits: [*Mat x2] / [*Min]) -10/Mines (discovered 2 exits: [*Mat] / *Exi) -10/Exiles -9/Mines -8/Materials (discovered 1 exit: Fac) History --------- Turn | Location | Event 1 | -11/Scrapyard | Discovered new exit (range 2) 7 | -11/Scrapyard | Entered Materials 207 | -10/Materials | Discovered new exit (range 16) 322 | -10/Materials | Build established: Mutant 398 | -10/Materials | Discovered new exit (range 14) 572 | -10/Materials | Discovered new exit (range 8) 1225 | -10/Materials | Entered Mines 1245 | -10/Mines | Learned 2 Materials zone layouts 1435 | -10/Mines | Deemed a non-threat by the Exiles lab entrance 1436 | -10/Mines | Discovered new exit (range 5) 1895 | -10/Mines | Discovered new exit (range 7) 2125 | -10/Mines | Entered Exiles 2161 | -10/Exiles | Met 8R-AWN 2187 | -10/Exiles | Met EX-HEX 2235 | -10/Exiles | Met EX-BIN 2253 | -10/Exiles | Aligned with FarCom system 2254 | -10/Exiles | Given EX-Vault access code 2328 | -10/Exiles | Opened EX-Vault 2335 | -10/Exiles | Found Prototype Ballistic Gun 2338 | -10/Exiles | Identified AWS/Gauss 2364 | -10/Exiles | Found Prototype Slashing Weapon 2364 | -10/Exiles | Identified Longsword +1 2398 | -10/Exiles | Exiles lab attacked by MAIN.C 2508 | -10/Exiles | Discovered new exit (range 12) 2523 | -10/Exiles | Left Exiles lab with AWS/Gauss 2523 | -10/Exiles | Entered Mines 2861 | -9/Mines | Learned 2 Materials zone layouts 2861 | -9/Mines | Discovered new exit (range 6) 2873 | -9/Mines | Learned Materials trap positions 3012 | -9/Mines | Assembled infested the area 3102 | -9/Mines | Entered Materials 3102 | -8/Materials | Evolved 4 slots: Propulsion x1, Utility x2, Weapon x1 3103 | -8/Materials | Identified exit to Factory 3104 | -8/Materials | Loaded intel: 23 trap records 3104 | -8/Materials | Self-destructed Last Messages --------------- 02970_ Found Weight Redist. System. 02970_ Found 27 Matter. 02971_ Acquired 20 matter. 03012_ ALERT: Infestation in the mines, dispatching Demolisher response squad. 03034_ as-21833 destroyed. 03035_ as-05060 destroyed. 03037_ Destroyed Asb. F-torch. 03038_ as-79916 destroyed. 03049_ as-09288 destroyed. 03054_ R5U8JM3L8WUTKO7=SJNK/P2WILR7UKYMD&G:> 03063_ Slammed into K-01 Serf. 03072_ System corrupted: Component data lost. 03077_ Slammed into K-01 Serf. 03077_ K-01 Serf knocked back. PARAMETERS=PROPULSION+1,UTILITY+2,WEAPON+1 LOCATION=UNKNOWN GOAL=ESCAPE 03102_ Receiving FarCom transmissions... Loading 4 Materials zones... Loading Materials trap records (x23)... Map ----- +----------------------------------------------------+ | ??????????????????????### #???# ## ??? | | ??????????????????????#########+####### #######??? | | ?????????????????????? #??????? | | ?????????????????????? #??????? | | ?????????????????????? #??????? | | ??????????????????????##+#############+##+##?????? | | ?????????????????????? #??# ^ #?????? | | ?????????????????????? #??# ^ #?????? | | ^^???????????????????? """ #??# #?????? | | ?????????????????????? """ #??# ^ #?????? | | ?????????????????????? """ "" #??# #?????? | | ??????????????????????????????????????^??????????? | | ????????????????????????????????????^????????????? | | ???????????????????????????????????^?????????????? | | ?????????????????????????????????????????????????? | | ????????????????#????????????????????????????????? | | ????????????????# ???????????????????????????????? | | ??????????????### ??????????????????????????????? | | ??????????????? ?????????????????????????????? | | ????????????????# ########?????????????????????? | | ????????????????? #?????????????????????? | | ?????????????????? #?????????????????????? | | ???????????????????? #?????????????????????? | | ?????????????????????# #?????????????????????? | | ?????????????????????# #?????????????????????? | | ?????????????????????# @ #?????????????????????? | | ?????????????????????# #?????????????????????? | | ??????????????????? #####?????????????????????? | | ????????????????# ???????????????????????????? | | ????????????????# ????????????????????????????? | | ??????????????? ??????????????????????????????? | | ??????????????####???????????????????????????????? | | ?????????????????????????????????????????????????? | | ?????????????????????????????????????????????????? | | ?????????????????????????????????????????????????? | | ?????????????????????????????????????????????????? | | | | | | | | | | | | | | | | | | | | | | | | | | | | | +----------------------------------------------------+ Best States ------------- Heat Dissipation 25 Energy Generation 10 Energy Capacity 250 Matter Stores 300 Matter Capacity 300 Sight Range 16 Terrain Scan Density 10 Evasion (%) 40 Recoil Reduction 2 Item Schematics ----------------- Hcp. Storage Unit | -10/Materials | Hacked Cargo Storage Unit | -10/Materials | Hacked Robot Schematics ------------------ None Fabricated ------------ Nothing Alien Tech Used ----------------- None Achievements -------------- None Challenges ------------ None Game ------ Seed ShrapnelRelayDetonator Manual? 0 Play Time 00:27:13 Cumulative 44.4 hours Start 2023.02.22 @ 22:46:55 End 2023.02.24 @ 14:48:36 Sessions 3 Manual Loads 0 Difficulty Rogue Special Mode None Game No. 42 Rogue 42 Adventurer 0 Explorer 0 Win Type - Total 0 Types 0/0/0/0/0/0/0/0/0 Lore% 26 Gallery% 39 Achievement% 34 Wizard Run 0 Options --------- ASCII 0 Keyboard 0 Movement Numpad Keybinds 0 Fullscreen 1 Font 12/Smallcaps Map View 83x54 Tactical HUD 1 Map Filters NONE Filters NONE Steam 1 RUN: 54fe4a33-cb4b-4fcd-b550-43cf6131843f